[Event "SixDays Budapest January IM-B 2025"]
[Site "Budapest"]
[Date "2025.01.28"]
[Round "4.2"]
[White "Varga, Csaba Zoltan"]
[Black "Tancsa, Tamas"]
[Result "1-0"]
[Annotator "TA"]
[ECO "C20"]
[WhiteElo "2198"]
[BlackElo "2192"]
[PlyCount "95"]
[EventDate "2025.01.24"]
[EventType "tourn"]
[EventCountry "HUN"]
[SourceTitle "playchess.com"]
[Source "ChessBase"]
[SourceQuality "1"]
[TimeControl "5400+30"]

{[%evp 9,95,-58,-50,-74,-78,-91,-11,-6,29,26,29,29,31,14,12,15,52,62,55,67,58,58,49,17,17,7,50,46,131,130,162,153,169,172,181,173,175,173,175,182,191,206,220,204,333,329,336,299,302,333,329,334,513,467,500,406,483,587,569,635,639,592,776,669,680,1138,1297,1246,1022,1678,1772,1674,29982,29980,29985,29986,29986,29987,29987,29988,29987,29988,29992,29993,29993,29994,29994,29995]} 1. f3 {[%emt 0:11:42]} e5 {[%emt 0:00:48]} 2. e4 {[%emt 0:00:04]} d5 {[%emt 0:09:22]} 3. exd5 {[%emt 0:00:18]} Qxd5 {[%emt 0:01:06]} 4. Nc3 {[%emt 0:00:11]} Qd8 {[%emt 0:00:14]} 5. f4 $146 {[%emt 0:04:00]} (5. Bc4 Qh4+ 6. g3 Qxc4 7. d3 Qc6 8. Bd2 Nf6 9. Qe2 Bd6 10. O-O-O Be6 11. f4 Qxh1 12. Qf3 Qxf3 13. Nxf3 {0-1 Hu,Y-Hummatov,S (1154) Wch U08 Batumi 2022 (7)}) 5... exf4 {[%emt 0:03:12] and ...Qh4+ should not be overlooked} 6. Bc4 {[%emt 0:02:28] C20: 1 e4 e5: Unusual White second moves.} Qh4+ {[%emt 0:01:46]} 7. Kf1 {[%emt 0:00:21] [#]} f3 {[%emt 0:18:20]} 8. Bb5+ $11 {[%emt 0:00:13] The position is equal.} Bd7 {[%emt 0:00:28]} 9. Nxf3 {[%emt 0:00:47]} (9. Bxd7+ Nxd7 10. Nxf3 Qh5 $11) 9... Bxb5+ {[%emt 0:00:45]} 10. Nxb5 {[%emt 0:00:05]} Qc4+ {[%emt 0:02:48]} 11. Qe2+ {[%emt 0:00:10]} Qxe2+ {[%emt 0:00:05]} 12. Kxe2 {[%emt 0:00:05]} Bd6 {[%emt 0:00:03]} 13. d4 {[%emt 0:03:51]} Nf6 {[%emt 0:04:50]} 14. c4 {[%emt 0:02:24][%cal Bc2c4,Bc4c5][%mdl 32]} a6 {[%emt 0:01:23]} 15. Nxd6+ {[%emt 0:02:02]} cxd6 {[%emt 0:00:08] Black is weak on the dark squares} 16. Bf4 {[%emt 0:02:37]} Kd7 {[%emt 0:05:35]} 17. Rhe1 {[%emt 0:02:34]} b5 {[%emt 0:06:00]} 18. c5 $1 {[%emt 0:01:10]} Nd5 {[%emt 0:06:24] White stays focused until the end.} ({Better is} 18... Re8+ $14 19. Kf1 Ne4) 19. Bxd6 $16 {[%emt 0:00:32] White is more active.} f6 {[%emt 0:00:04] Dodges Ne5+} 20. Bxb8 {[%emt 0:01:36]} Raxb8 {[%emt 0:00:25]} 21. g3 {[%emt 0:01:55]} Rhe8+ {[%emt 0:01:31]} 22. Kd2 {[%emt 0:00:14]} g5 {[%emt 0:07:31]} 23. Rxe8 {[%emt 0:01:23]} Rxe8 $18 {[%emt 0:00:02][%mdl 4096] Endgame KRN-KRN. White is a pawn up.} 24. Re1 {[%emt 0:00:10]} Rc8 {[%emt 0:00:29]} 25. Ng1 {[%emt 0:01:00]} h5 {[%emt 0:02:18]} 26. Ne2 {[%emt 0:00:25]} Re8 {[%emt 0:15:29] [#]} (26... b4 $142 27. Nc1 h4) 27. Nc3 $1 {[%emt 0:01:57]} Rxe1 {[%emt 0:00:25]} 28. Kxe1 {[%emt 0:00:05] KN-KN. White is a pawn up.} Ne7 {[%emt 0:00:13]} 29. Ke2 {[%emt 0:01:21]} f5 {[%emt 0:01:27]} 30. a3 {[%emt 0:00:46]} Ke6 {[%emt 0:01:35]} (30... Nc6 {keeps fighting.} 31. Kd3 Na5) 31. b4 {[%emt 0:01:18]} Kf6 {[%emt 0:03:00]} 32. Kd3 {[%emt 0:02:06] aiming for d5.} Ke6 {[%emt 0:00:15] [#]} 33. d5+ $1 {[%emt 0:03:08][%cal Bd4d5,Bd5d6][%mdl 544]} Ke5 {[%emt 0:01:29]} 34. d6 {[%emt 0:00:24]} Nc6 {[%emt 0:00:11]} 35. Ne2 {[%emt 0:01:59]} Kd5 {[%emt 0:03:06]} 36. Ke3 {[%emt 0:01:41]} Ne5 {[%emt 0:02:06]} 37. h4 {[%emt 0:00:30]} gxh4 {[%emt 0:03:03]} 38. gxh4 {[%emt 0:00:07]} Ke6 {[%emt 0:00:18]} 39. Nf4+ {[%emt 0:00:37]} Kd7 {[%emt 0:00:28]} 40. Nxh5 {[%emt 0:03:25]} Ng6 {[%emt 0:00:26]} 41. Nf6+ {[%emt 0:00:25] White mates.} Ke6 {[%emt 0:00:36]} 42. d7 {[%emt 0:00:11]} Ke7 {[%emt 0:00:04] [#]} 43. c6 $1 {[%emt 0:00:16]} f4+ {[%emt 0:00:51]} 44. Ke4 {[%emt 0:00:08]} Kd8 {[%emt 0:00:08]} 45. h5 {[%emt 0:01:35][%cal Bh4h5,Bh5h6,Bh6h7][%mdl 32]} Ne7 {[%emt 0:00:38]} 46. h6 {[%emt 0:00:07]} Ng6 {[%emt 0:00:04]} 47. h7 {[%emt 0:00:07]} Kc7 {[%emt 0:00:19]} 48. Nd5+ {[%emt 0:00:05] Weighted Error Value: White=0.07 (flawless) /Black=0.46  Mistake:       	---       	Black=4      Inaccurate:     	White=1     	Black=3      OK:         	White=14    	Black=8      Best:        	White=5     	Black=1      Strong:       	White=2     	---} 1-0

[Event "SixDays Budapest January IM-B 2025"]
[Site "Budapest"]
[Date "2025.01.28"]
[Round "4.3"]
[White "Ongut, Tamas Gunes"]
[Black "Papp, Bence"]
[Result "1/2-1/2"]
[Annotator "TA"]
[ECO "C43"]
[WhiteElo "2262"]
[BlackElo "2272"]
[PlyCount "52"]
[EventDate "2025.01.24"]
[EventType "tourn"]
[EventCountry "HUN"]
[SourceTitle "playchess.com"]
[Source "ChessBase"]
[SourceQuality "1"]
[TimeControl "5400+30"]

{[%evp 17,52,12,10,4,6,5,15,-46,0,-14,-2,-7,0,-7,-2,-3,0,-13,-10,-11,-11,-14,-12,-14,-13,-22,-18,-16,0,0,0,0,0,0,0,0,0]} 1. e4 {[%emt 0:06:07]} e5 {[%emt 0:00:09]} 2. Nf3 {[%emt 0:00:11]} Nf6 {[%emt 0:00:09]} 3. d4 {[%emt 0:00:24]} Nxe4 {[%emt 0:00:21]} 4. Bd3 {[%emt 0:00:32]} d5 {[%emt 0:00:13]} 5. Nxe5 {[%emt 0:00:10]} Nd7 {[%emt 0:00:20]} 6. Nxd7 {[%emt 0:03:21]} Bxd7 {[%emt 0:00:08]} 7. O-O {[%emt 0:00:10]} Bd6 {[%emt 0:00:06]} 8. Nc3 {[%emt 0:00:21]} Nxc3 {[%emt 0:00:46]} 9. bxc3 {[%emt 0:00:09]} O-O {[%emt 0:00:41]} 10. Qh5 {[%emt 0:00:09][%csl Gd3,LRd5,LRh7][%cal Rh5h7] [#] Against Qh4. C43: Petroff Defence: 3 d4.} f5 {[%emt 0:00:04] A sharp opening} 11. Bg5 {[%emt 0:00:09]} Qe8 {[%emt 0:02:39]} 12. Qh4 {[%emt 0:00:12]} ({Better is} 12. Qf3 $11) 12... Qg6 {[%emt 0:08:47]} (12... h6 $15 {was preferable.} 13. Bd2 f4) 13. Rfe1 $146 {[%emt 0:03:14] The position is equal.} (13. Bf4 Bxf4 14. Qxf4 Qc6 15. Rab1 a6 16. Rfe1 b6 17. Re3 Rae8 18. Rg3 Qxc3 19. h4 {½-½ Vidruska,R (1991)-Grabarczyk,M (2337) EU-ch Blitz Katowice 2022 (8)}) 13... Rae8 {[%emt 0:01:54]} 14. Bf4 {[%emt 0:04:25]} Qg4 {[%emt 0:39:07]} 15. Qxg4 {[%emt 0:01:00]} fxg4 {[%emt 0:00:05]} 16. Bxd6 {[%emt 0:08:24]} cxd6 {[%emt 0:00:19]} 17. Rab1 {[%emt 0:12:58]} Rxe1+ {[%emt 0:04:45]} 18. Rxe1 $11 {[%emt 0:00:42][%mdl 4096] Endgame KRB-KRB} Kf7 {[%emt 0:00:21]} 19. c4 {[%emt 0:02:00]} (19. Bxh7 $2 {loses.} g6 20. f3 gxf3 (20... Rh8 $2 21. Bxg6+ Kxg6 22. fxg4 $19) 21. gxf3 Rh8 $19) 19... dxc4 {[%emt 0:01:24]} 20. Bxc4+ {[%emt 0:00:09]} Kf6 {[%emt 0:00:04]} 21. Re3 {[%emt 0:08:41]} Rc8 {[%emt 0:02:24]} 22. Bb3 {[%emt 0:01:29]} a5 {[%emt 0:06:20] [#]} 23. c3 $1 {[%emt 0:02:08]} b5 {[%emt 0:03:09] and ...b4 should not be overlooked} 24. f3 {[%emt 0:01:05]} b4 {[%emt 0:04:09]} 25. cxb4 {[%emt 0:00:10]} axb4 {[%emt 0:00:10]} 26. fxg4 {[%emt 0:00:53]} Bxg4 {[%emt 0:01:19] An uneventful encounter.   Weighted Error Value: White=0.10 (very precise) /Black=0.06 (flawless)   Mistake:       	White=1     	Black=1      OK:         	White=5     	Black=5      Best:        	White=1     	Black=1      Strong:       	White=1     	---} 1/2-1/2

[Event "SixDays Budapest January IM-B 2025"]
[Site "Budapest"]
[Date "2025.01.28"]
[Round "4.5"]
[White "Meers, Hubert"]
[Black "Senthil Maran K"]
[Result "1-0"]
[Annotator "RC"]
[ECO "B12"]
[WhiteElo "2198"]
[BlackElo "2398"]
[PlyCount "87"]
[EventDate "2025.01.24"]
[EventType "tourn"]
[EventCountry "HUN"]
[SourceTitle "playchess.com"]
[Source "ChessBase"]
[SourceQuality "1"]
[TimeControl "5400+30"]

1. e4 {[%emt 0:00:02]} c6 {[%emt 0:17:15]} 2. d4 {[%emt 0:00:09]} d5 {[%emt 0:00:05]} 3. e5 {[%emt 0:00:04]} Bf5 {[%emt 0:00:06]} 4. h4 {[%emt 0:00:04]} h5 {[%emt 0:00:17]} 5. Bd3 {[%emt 0:00:05]} Bxd3 {[%emt 0:00:05]} 6. Qxd3 {[%emt 0:00:03]} Qa5+ {[%emt 0:00:09]} 7. Nd2 {[%emt 0:00:22]} e6 {[%emt 0:00:08]} 8. Ngf3 {[%emt 0:01:47]} Nh6 {[%emt 0:00:10]} 9. O-O {[%emt 0:00:49]} Nf5 {[%emt 0:00:08]} 10. c4 {[%emt 0:02:34]} Be7 {[%emt 0:01:46]} 11. g3 {[%emt 0:00:07]} O-O {[%emt 0:01:42]} 12. b3 {[%emt 0:02:25]} Qa6 {[%emt 0:02:00]} 13. Qc2 {[%emt 0:05:05]} Rd8 {[%emt 0:01:50]} 14. Rd1 {[%emt 0:04:00]} c5 {[%emt 0:04:00]} 15. dxc5 {[%emt 0:00:10]} Nc6 {[%emt 0:00:21]} 16. Bb2 {[%emt 0:03:14]} Nb4 {[%emt 0:03:49]} 17. Qb1 {[%emt 0:00:56]} dxc4 {[%emt 0:07:32]} 18. Nxc4 {[%emt 0:05:24]} Bxc5 {[%emt 0:01:12]} 19. Ng5 {[%emt 0:00:31]} b5 {[%emt 0:05:23]} 20. Nd6 {[%emt 0:00:21]} Bxd6 {[%emt 0:03:20]} 21. exd6 {[%emt 0:00:04]} Rxd6 {[%emt 0:00:20]} 22. Qe4 {[%emt 0:10:49]} Rad8 {[%emt 0:00:26]} 23. Qe2 {[%emt 0:29:20]} f6 {[%emt 0:20:01]} 24. Rxd6 {[%emt 0:02:22]} Qxd6 {[%emt 0:00:17]} 25. Ne4 {[%emt 0:00:10]} Nd4 {[%emt 0:15:38]} 26. Qxh5 {[%emt 0:05:06]} Qe5 {[%emt 0:00:18]} 27. Qxe5 {[%emt 0:00:09]} fxe5 {[%emt 0:00:03]} 28. Kg2 {[%emt 0:02:50]} Rc8 {[%emt 0:01:57]} 29. Rd1 {[%emt 0:02:34]} Nbc2 {[%emt 0:01:02]} 30. Ng5 {[%emt 0:04:31]} Rc6 {[%emt 0:01:21]} 31. Nf3 {[%emt 0:01:15]} Rc5 {[%emt 0:00:24]} 32. Rd2 {[%emt 0:03:11]} Nc6 {[%emt 0:04:26]} 33. Rd7 {[%emt 0:04:31]} a5 {[%emt 0:02:41]} 34. Rc7 {[%emt 0:00:44]} N2b4 {[%emt 0:01:05]} 35. Ng5 {[%emt 0:01:51]} Rd5 {[%emt 0:00:02]} 36. a3 {[%emt 0:02:03]} g6 {[%emt 0:00:48]} 37. axb4 {[%emt 0:00:17]} Nxb4 {[%emt 0:00:02]} 38. Bc3 {[%emt 0:01:18]} Nd3 {[%emt 0:02:18]} 39. Bxa5 {[%emt 0:01:39]} b4 {[%emt 0:00:07]} 40. Bb6 {[%emt 0:00:05]} Ne1+ {[%emt 0:00:50]} 41. Kf1 {[%emt 0:00:15]} Rd1 {[%emt 0:00:39]} 42. Ke2 {[%emt 0:00:04]} Rb1 {[%emt 0:00:05]} 43. Bc5 {[%emt 0:01:51]} Ng2 {[%emt 0:01:06]} 44. Be7 {[%emt 0:00:32]} 1-0

[Event "SixDays Budapest January IM-B 2025"]
[Site "Budapest"]
[Date "2025.01.28"]
[Round "5.1"]
[White "Senthil Maran K"]
[Black "Subramanian, Anusha"]
[Result "1-0"]
[Annotator "TA"]
[ECO "E09"]
[WhiteElo "2398"]
[BlackElo "2044"]
[PlyCount "77"]
[EventDate "2025.01.24"]
[EventType "tourn"]
[EventCountry "HUN"]
[SourceTitle "playchess.com"]
[Source "ChessBase"]
[SourceQuality "1"]
[TimeControl "5400+30"]

{[%evp 20,77,22,45,73,65,89,72,70,67,76,68,69,75,77,70,85,81,102,93,97,94,151,142,137,139,189,167,192,196,310,300,391,385,453,446,1277,1747,1214,1496,2110,845,851,904,930,884,643,461,1773,1594,1908,1710,29968,29960,29979,29979,29987,29988,29988,29989]} 1. d4 {[%emt 0:00:02]} Nf6 {[%emt 0:00:05]} 2. g3 {[%emt 0:00:20]} d5 {[%emt 0:00:06]} 3. Nf3 {[%emt 0:00:05]} e6 {[%emt 0:00:04]} 4. Bg2 {[%emt 0:00:11]} Be7 {[%emt 0:00:07]} 5. c4 {[%emt 0:00:09]} O-O {[%emt 0:00:07]} 6. Qc2 {[%emt 0:00:28]} Nbd7 {[%emt 0:01:17]} 7. O-O {[%emt 0:00:21]} c6 {[%emt 0:00:47]} 8. Nbd2 {[%emt 0:02:02]} a5 {[%emt 0:04:17]} 9. e4 {[%emt 0:00:32]} dxe4 {[%emt 0:00:35]} 10. Nxe4 {[%emt 0:00:23]} Nxe4 {[%emt 0:09:46]} 11. Qxe4 {[%emt 0:00:45]} Nf6 {[%emt 0:02:56] E09: Closed Catalan: Main Line: 7 Qc2 c6 8 Nbd2.} 12. Qe2 {[%emt 0:01:16]} Bd6 {[%emt 0:00:54]} 13. Ne5 $146 {[%emt 0:03:46]} (13. Rd1 Re8 14. Ne5 Nd7 15. Bf4 Qe7 16. Qh5 Nf6 17. Qf3 c5 18. dxc5 Bxc5 19. Rd3 {1-0 Rytenko,V (2291)-Riebel,W (2115) Hessenliga 1819 2018 (8.5)}) 13... Qc7 {[%emt 0:02:03] White is better.} 14. Bf4 {[%emt 0:01:35]} Nd7 {[%emt 0:03:47]} 15. c5 {[%emt 0:05:44] White has more active pieces.} Bxe5 {[%emt 0:01:08]} 16. Bxe5 {[%emt 0:00:08] White leaves nothing to chance now.} Nxe5 {[%emt 0:00:45]} 17. dxe5 {[%emt 0:00:25]} (17. Qxe5 Qb8 $11) 17... b6 {[%emt 0:01:31] [#] Threatens to win with ...Ba6.} 18. Rfc1 {[%emt 0:00:41]} Bb7 {[%emt 0:01:00]} 19. Qe3 {[%emt 0:00:49]} bxc5 {[%emt 0:03:37]} 20. Qxc5 {[%emt 0:02:26]} a4 {[%emt 0:08:12] [#]} ({Better is} 20... Rfd8) 21. b4 $1 $16 {[%emt 0:01:41][%cal Ob4b5]} (21. Bxc6 $2 Rac8 22. Bxb7 Qxc5 23. Bxc8 Qb5 $19 (23... Qxe5 $2 24. Bd7 $19)) 21... axb3 {[%emt 0:02:18]} 22. axb3 {[%emt 0:00:03][%cal Ba2b3,Bb3b4,Bb4b5,Bb5c6,Bc6c7][%mdl 32]} (22. Bxc6 $2 b2 (22... bxa2 $2 23. Bg2 $19) (22... Rxa2 $2 23. Rab1 $19) 23. Rab1 bxc1=Q+ $19 (23... bxc1=B $2 24. Rxb7 Qc8 25. Qc4 $19) (23... bxc1=R+ $2 24. Rxc1 Rac8 25. Bxb7 $19)) 22... Rfb8 {[%emt 0:15:43]} (22... Qb8 $16 23. b4 (23. Bxc6 $2 Rxa1 24. Rxa1 Rc8 $19) 23... h6) 23. b4 $18 {[%emt 0:00:46]} (23. Bxc6 $2 Rxa1 24. Rxa1 Qxc6 $19 (24... Bxc6 $2 25. Rc1 $19)) 23... Qd7 {[%emt 0:09:22]} 24. Rxa8 {[%emt 0:02:30]} (24. Bxc6 $2 Bxc6 25. Ra5 Be4 $19) 24... Rxa8 {[%emt 0:03:27]} (24... Bxa8 $142 25. Ra1 (25. Bxc6 Bxc6 26. Qxc6 Qxc6 $16) 25... Qd8) 25. Qd6 {[%emt 0:01:50]} (25. Bxc6 Bxc6 26. Qxc6 Qxc6 27. Rxc6 g5 $16) 25... Qe8 {[%emt 0:07:05]} 26. b5 {[%emt 0:03:53]} (26. Bxc6 Bxc6 27. Qxc6 (27. Rxc6 g6 $16) 27... Qxc6 28. Rxc6 g5 $16) 26... Rc8 {[%emt 0:05:53]} 27. bxc6 {[%emt 0:02:26]} ({Not} 27. Bxc6 h5 28. h4 (28. Bxe8 $2 {is a self mate.} Rxc1+) 28... Ba8 $18) 27... Ba8 {[%emt 0:01:50]} (27... h6 $142 28. h4 (28. cxb7 $2 {too greedy.} Rxc1+ 29. Bf1 Rb1 $19) 28... g6) 28. c7 {[%emt 0:01:02]} Bxg2 {[%emt 0:03:03]} 29. Kxg2 {[%emt 0:00:07][%mdl 4096] Endgame KQR-KQR. White is a pawn up.} h5 {[%emt 0:02:30]} 30. Rd1 {[%emt 0:04:07]} (30. Rb1 $142 g5 31. Rb8) 30... Kh7 {[%emt 0:01:36]} 31. Qd7 {[%emt 0:01:23]} Qxd7 {[%emt 0:00:56]} 32. Rxd7 {[%emt 0:00:02] KR-KR. White is a pawn up.} Kg6 {[%emt 0:00:36]} 33. Kf3 {[%emt 0:00:22]} f6 {[%emt 0:01:06]} (33... Kf5 $142 34. Rxf7+ Kxe5 35. Rxg7 Kf6) 34. Ke4 {[%emt 0:00:09]} Kh6 {[%emt 0:01:03]} 35. Kd4 {[%emt 0:00:35] exf6 is the strong threat.} f5 {[%emt 0:01:28]} 36. h4 {[%emt 0:00:56] White mates.} g5 {[%emt 0:00:45]} 37. f4 {[%emt 0:00:32]} gxf4 {[%emt 0:00:41]} 38. gxf4 {[%emt 0:00:06]} Kg6 {[%emt 0:00:19]} 39. Kc5 {[%emt 0:00:30] Weighted Error Value: White=0.27 (precise) /Black=1.08  Mistake:       	---       	Black=4      Inaccurate:     	---       	Black=1      OK:         	White=4     	Black=7      Best:        	White=3     	---        Strong:       	White=1     	---} 1-0

[Event "SixDays Budapest January IM-B 2025"]
[Site "Budapest"]
[Date "2025.01.28"]
[Round "5.2"]
[White "Horvath, David"]
[Black "Meers, Hubert"]
[Result "1/2-1/2"]
[Annotator "TA"]
[ECO "E11"]
[WhiteElo "2299"]
[BlackElo "2198"]
[PlyCount "33"]
[EventDate "2025.01.24"]
[EventType "tourn"]
[EventCountry "HUN"]
[SourceTitle "playchess.com"]
[Source "ChessBase"]
[SourceQuality "1"]
[TimeControl "5400+30"]

{[%evp 9,33,45,47,47,53,39,39,40,29,7,39,13,31,14,31,37,37,28,33,0,17,17,23,18,29,21]} 1. d4 {[%emt 0:00:03]} Nf6 {[%emt 0:00:03][%cal Bg8f6,Bf6e4,Be4d2][%mdl 32]} 2. c4 {[%emt 0:00:05]} e6 {[%emt 0:00:03]} 3. Nf3 {[%emt 0:00:10]} Bb4+ {[%emt 0:00:07]} 4. Nbd2 {[%emt 0:03:24]} Ne4 {[%emt 0:04:23]} 5. a3 {[%emt 0:05:43]} Nxd2 {[%emt 0:03:45]} 6. Nxd2 {[%emt 0:10:17] E11: Bogo-Indian.} Be7 {[%emt 0:00:07]} 7. g3 {[%emt 0:01:55]} O-O {[%emt 0:00:57]} 8. Bg2 {[%emt 0:01:03] White is slightly better.} d6 $146 {[%emt 0:00:08]} (8... f5 9. Nf3 Bf6 10. O-O d6 11. e3 c6 12. Bd2 Nd7 13. Qc2 Qb6 14. Bc3 g5 {1-0 Karavaev,E-Shadchnev,N RUS-Cup Bor 2000 (4)}) 9. Nf3 {[%emt 0:05:10]} Nd7 {[%emt 0:02:40]} 10. e4 {[%emt 0:07:18]} e5 {[%emt 0:00:23]} 11. O-O {[%emt 0:00:55]} c6 {[%emt 0:06:46]} 12. Be3 {[%emt 0:14:32]} Qc7 {[%emt 0:00:37]} 13. h3 {[%emt 0:02:18]} a5 {[%emt 0:07:44]} 14. a4 {[%emt 0:12:47]} exd4 {[%emt 0:03:33]} 15. Nxd4 {[%emt 0:00:23]} Nc5 {[%emt 0:00:27]} 16. Qc2 {[%emt 0:03:02]} Bf6 {[%emt 0:11:30]} 17. b3 {[%emt 0:07:04] Weighted Error Value: White=0.14 (very precise) /Black=0.06 (flawless)   Inaccurate:     	White=2     	Black=1      OK:         	White=2     	Black=6} 1/2-1/2

[Event "SixDays Budapest January IM-B 2025"]
[Site "Budapest"]
[Date "2025.01.28"]
[Round "5.3"]
[White "Papp, Bence"]
[Black "Krizsany, Laszlo"]
[Result "1/2-1/2"]
[Annotator "TA"]
[ECO "D02"]
[WhiteElo "2272"]
[BlackElo "2303"]
[PlyCount "61"]
[EventDate "2025.01.24"]
[EventType "tourn"]
[EventCountry "HUN"]
[SourceTitle "playchess.com"]
[Source "ChessBase"]
[SourceQuality "1"]
[TimeControl "5400+30"]

{[%evp 10,61,35,39,39,27,47,27,29,6,27,31,36,36,35,16,19,20,21,0,0,0,7,0,1,0,1,0,0,0,0,0,2,0,0,0,0,-14,-12,-16,-8,-4,-4,-2,-5,-8,0,0,0,0,0,0,0,0]} 1. d4 {[%emt 0:00:05]} d5 {[%emt 0:00:55]} 2. Nf3 {[%emt 0:00:16]} c5 {[%emt 0:00:11]} 3. c4 {[%emt 0:01:29]} dxc4 {[%emt 0:00:11]} 4. e4 {[%emt 0:01:30]} cxd4 {[%emt 0:00:26]} 5. Qxd4 {[%emt 0:00:12]} Qxd4 {[%emt 0:00:23]} 6. Nxd4 {[%emt 0:00:07][%cal Ob1c3]} Bd7 {[%emt 0:00:30] D20: Queen's Gambit Accepted: 3 e3 and 3 e4.} 7. Bxc4 {[%emt 0:00:29]} e5 {[%emt 0:00:37]} 8. Nb3 {[%emt 0:21:18]} Nf6 {[%emt 0:08:26] White has an edge.} 9. f3 $146 {[%emt 0:01:15]} (9. Nc3 Bb4 10. Bd2 Bc6 {½-½ Korpics,Z (2315)-Karolyi,T (2385) HUN-chT Hungary 1995}) 9... Bb4+ {[%emt 0:05:52]} 10. Bd2 {[%emt 0:02:15]} Bxd2+ {[%emt 0:02:21]} 11. N1xd2 {[%emt 0:00:06]} Ke7 {[%emt 0:02:05]} 12. Rc1 {[%emt 0:00:44]} Rc8 {[%emt 0:06:28] The position is equal.} 13. Kf2 {[%emt 0:01:34]} Nc6 {[%emt 0:09:58]} 14. Rc3 {[%emt 0:04:11]} Nd8 {[%emt 0:09:12]} 15. Rhc1 {[%emt 0:02:03]} Rc7 {[%emt 0:01:50]} 16. Nf1 {[%emt 0:09:05]} Rac8 {[%emt 0:05:01]} 17. Ne3 {[%emt 0:00:17]} b5 {[%emt 0:04:58]} 18. Bf1 {[%emt 0:01:27]} Rxc3 {[%emt 0:00:19]} 19. Rxc3 {[%emt 0:03:05]} Rxc3 {[%emt 0:00:10]} 20. bxc3 {[%emt 0:00:05]} Nb7 {[%emt 0:06:00] Against Nc5} 21. g4 {[%emt 0:09:56]} Kd6 {[%emt 0:05:32]} 22. c4 {[%emt 0:02:08]} a6 {[%emt 0:01:33]} 23. cxb5 {[%emt 0:06:38]} axb5 {[%emt 0:00:14]} 24. Ke1 {[%emt 0:00:31]} Nc5 {[%emt 0:03:19]} 25. Kd2 {[%emt 0:00:23]} Nxb3+ {[%emt 0:02:14]} 26. axb3 $11 {[%emt 0:00:02] KBN-KBN} Kc5 {[%emt 0:03:23]} 27. Nc2 {[%emt 0:02:00]} Ne8 {[%emt 0:02:26]} 28. b4+ {[%emt 0:02:36]} Kd6 {[%emt 0:01:15]} 29. Na3 {[%emt 0:09:02]} Nc7 {[%emt 0:00:38]} 30. g5 {[%emt 0:01:19]} Kc6 {[%emt 0:05:02]} 31. h4 {[%emt 0:05:49] Weighted Error Value: White=0.05 (flawless) /Black=0.03 (flawless)   OK:         	White=6     	Black=13     Best:        	---       	Black=1} 1/2-1/2

[Event "SixDays Budapest January IM-B 2025"]
[Site "Budapest"]
[Date "2025.01.28"]
[Round "5.4"]
[White "Tancsa, Tamas"]
[Black "Ongut, Tamas Gunes"]
[Result "1/2-1/2"]
[Annotator "TA"]
[ECO "B57"]
[WhiteElo "2192"]
[BlackElo "2262"]
[PlyCount "54"]
[EventDate "2025.01.24"]
[EventType "tourn"]
[EventCountry "HUN"]
[SourceTitle "playchess.com"]
[Source "ChessBase"]
[SourceQuality "1"]
[TimeControl "5400+30"]

{[%evp 11,54,18,40,14,29,16,22,37,45,16,22,5,22,0,13,0,8,0,0,-18,0,0,-5,-12,0,-2,9,0,-5,0,-5,-7,-4,-7,5,0,0,0,9,9,11,0,10,12,23]} 1. e4 {[%emt 0:00:09]} c5 {[%emt 0:08:05]} 2. Nf3 {[%emt 0:00:03]} Nc6 {[%emt 0:00:09]} 3. d4 {[%emt 0:00:08]} cxd4 {[%emt 0:00:06]} 4. Nxd4 {[%emt 0:00:06]} Nf6 {[%emt 0:00:09]} 5. Nc3 {[%emt 0:00:09]} d6 {[%emt 0:00:45]} 6. Bc4 {[%emt 0:00:18]} Bd7 {[%emt 0:00:17]} 7. Nxc6 {[%emt 0:16:43] B57: Classical Sicilian: Sozin with 6...Qb6.} Bxc6 {[%emt 0:00:09]} 8. Qe2 {[%emt 0:00:16]} g6 {[%emt 0:01:42]} 9. O-O {[%emt 0:04:17]} Bg7 {[%emt 0:00:13]} 10. f3 {[%emt 0:03:17]} O-O {[%emt 0:01:35] The position is equal.} 11. Be3 {[%emt 0:00:04] Against Qb6} Qa5 $146 {[%emt 0:01:15]} (11... Qc7 12. Rfd1 a6 13. a4 Rac8 14. Bb3 Nd7 15. Ra2 Kh8 16. a5 f5 17. Be6 fxe4 18. fxe4 {1-0 Hornych,C (2035)-Schmidt,R (1786) Mecklenburg VP LL 1617 2016 (1.5)}) 12. Rad1 {[%emt 0:01:45]} Rac8 {[%emt 0:02:11]} 13. Bd4 {[%emt 0:07:41]} Nd7 {[%emt 0:00:59]} 14. Bxg7 {[%emt 0:00:31]} Kxg7 {[%emt 0:00:07]} 15. Qe3 {[%emt 0:01:13]} Qb6 {[%emt 0:10:59]} 16. Qxb6 {[%emt 0:02:00]} Nxb6 {[%emt 0:00:07]} 17. Be2 {[%emt 0:00:54]} Bd7 {[%emt 0:01:55]} 18. Rd2 {[%emt 0:13:27]} Rc5 {[%emt 0:01:43]} 19. Nd5 {[%emt 0:03:08]} Nxd5 {[%emt 0:03:25]} 20. exd5 {[%emt 0:00:08]} b5 {[%emt 0:00:12]} 21. c3 {[%emt 0:06:36]} a5 {[%emt 0:03:24]} 22. Re1 {[%emt 0:01:25]} Rd8 {[%emt 0:03:45]} 23. Bf1 {[%emt 0:03:09]} Kf8 {[%emt 0:01:25]} 24. Re4 {[%emt 0:05:20]} Bc8 {[%emt 0:08:11]} 25. a3 {[%emt 0:10:21]} Bb7 {[%emt 0:02:33]} 26. Red4 {[%emt 0:00:19]} Rb8 {[%emt 0:04:33]} 27. Kf2 {[%emt 0:03:30]} Ba8 {[%emt 0:01:34] Weighted Error Value: White=0.08 (flawless) /Black=0.06 (flawless)   Inaccurate:     	White=1     	---        OK:         	White=6     	Black=9      Best:        	---       	Black=1} 1/2-1/2